[Event "FTX Road to Miami Prelims 2022"]
[Site "Online"]
[Date "2022.07.04"]
[Round "10.5"]
[White "Wei, Yi"]
[Black "Xiong, Jeffery"]
[Result "1/2-1/2"]
[ECO "C65"]
[WhiteElo "2727"]
[BlackElo "2691"]
[Annotator "ChessBase"]
[PlyCount "105"]
[EventDate "2022.07.10"]
[EventType "tourn"]
[EventCountry "NET"]
[SourceTitle "playchess.com"]
[Source "ChessBase"]
[SourceQuality "1"]
[TimeControl "40/5400+30:1800+30"]

1. e4 {[%emt 1:15:40]} e5 {[%emt 1:15:40]} 2. Nf3 {[%emt 0:00:22]} Nc6 {[%emt 0:00:22]} 3. Bb5 {[%emt 0:00:21]} Nf6 {[%emt 0:00:21]} 4. d3 {[%emt 0:00:21]} Bc5 {[%emt 0:00:21]} 5. Bxc6 {[%emt 0:00:22]} dxc6 {[%emt 0:00:20]} 6. Nbd2 {[%emt 0:00:22]} Nd7 {[%emt 0:00:21]} 7. Nc4 {[%emt 0:00:23]} O-O {[%emt 0:00:22]} 8. O-O {[%emt 0:00:21]} Re8 {[%emt 0:00:23]} 9. Bd2 {[%emt 0:00:40]} Bd6 {[%emt 0:01:09]} 10. Kh1 {[%emt 0:01:06]} Nf8 {[%emt 0:00:24]} 11. Ne3 {[%emt 0:01:43]} c5 {[%emt 0:00:56]} 12. Bc3 {[%emt 0:00:43]} b6 {[%emt 0:01:07]} 13. g3 {[%emt 0:00:47]} Ng6 {[%emt 0:01:12]} 14. Nd2 {[%emt 0:01:13]} Qg5 {[%emt 0:01:13]} 15. Ndc4 {[%emt 0:00:56]} Bb7 {[%emt 0:02:52]} 16. f4 {[%emt 0:04:34]} exf4 {[%emt 0:00:21]} 17. Nxd6 {[%emt 0:00:21]} cxd6 {[%emt 0:00:20]} 18. gxf4 {[%emt 0:00:21]} Qd8 {[%emt 0:00:21]} 19. Qh5 {[%emt 0:00:52]} d5 {[%emt 0:01:14]} 20. Nxd5 {[%emt 0:01:50]} Bxd5 {[%emt 0:00:22]} 21. exd5 {[%emt 0:00:21]} Ne7 {[%emt 0:00:27]} 22. Rg1 {[%emt 0:00:49]} g6 {[%emt 0:00:44]} 23. Rg5 {[%emt 0:00:24]} Qd6 {[%emt 0:06:38]} 24. Rag1 {[%emt 0:02:53]} f6 {[%emt 0:00:25]} 25. Qh6 {[%emt 0:01:19]} Rf8 {[%emt 0:00:21]} 26. f5 {[%emt 0:01:40]} Qxd5+ {[%emt 0:00:21]} 27. R1g2 {[%emt 0:00:21]} Qf3 {[%emt 0:00:21]} 28. fxg6 {[%emt 0:01:17]} Qf1+ {[%emt 0:00:22]} 29. Rg1 {[%emt 0:00:21]} Qf3+ {[%emt 0:00:20]} 30. R1g2 {[%emt 0:00:21]} Qf1+ {[%emt 0:00:21]} 31. Rg1 {[%emt 0:00:20]} Qf3+ {[%emt 0:00:20]} 32. R5g2 {[%emt 0:01:10]} Nxg6 {[%emt 0:00:22]} 33. Qd2 {[%emt 0:01:05]} Rae8 {[%emt 0:00:33]} 34. Qf2 {[%emt 0:00:25]} Qd5 {[%emt 0:00:57]} 35. h3 {[%emt 0:00:30]} Re6 {[%emt 0:00:28]} 36. Kh2 {[%emt 0:00:31]} Rfe8 {[%emt 0:00:23]} 37. Rf1 {[%emt 0:01:04]} Qd6+ {[%emt 0:01:48]} 38. Qg3 {[%emt 0:00:32]} Qxg3+ {[%emt 0:00:26]} 39. Kxg3 {[%emt 0:00:23]} Rf8 {[%emt 0:01:28]} 40. Rgf2 {[%emt 0:00:30]} Re3+ {[%emt 0:00:22]} 41. Kh2 {[%emt 0:30:49]} f5 {[%emt 0:30:56]} 42. Rxf5 {[%emt 0:00:22]} Rxf5 {[%emt 0:00:23]} 43. Rxf5 {[%emt 0:00:21]} Re2+ {[%emt 0:00:21]} 44. Kg3 {[%emt 0:00:21]} Rxc2 {[%emt 0:00:21]} 45. Rd5 {[%emt 0:00:36]} Re2 {[%emt 0:00:44]} 46. Rd7 {[%emt 0:00:32]} Re7 {[%emt 0:00:44]} 47. Rxe7 {[%emt 0:00:21]} Nxe7 {[%emt 0:00:20]} 48. Kf4 {[%emt 0:00:29]} Kf7 {[%emt 0:00:21]} 49. Ke5 {[%emt 0:00:24]} Ng6+ {[%emt 0:00:21]} 50. Kf5 {[%emt 0:00:52]} Ne7+ {[%emt 0:00:21]} 51. Ke5 {[%emt 0:00:21]} Ng6+ {[%emt 0:00:21]} 52. Kf5 {[%emt 0:00:47]} Ne7+ {[%emt 0:00:22]} 53. Ke5 {[%emt 0:00:20]} 1/2-1/2

[Event "FTX Road to Miami Prelims 2022"]
[Site "Online"]
[Date "2022.07.04"]
[Round "10.6"]
[White "Dominguez Perez, Leinier"]
[Black "Giri, Anish"]
[Result "1/2-1/2"]
[ECO "B90"]
[WhiteElo "2754"]
[BlackElo "2760"]
[Annotator "ChessBase"]
[PlyCount "83"]
[EventDate "2022.07.10"]
[EventType "tourn"]
[EventCountry "NET"]
[SourceTitle "playchess.com"]
[Source "ChessBase"]
[SourceQuality "1"]
[TimeControl "40/5400+30:1800+30"]

1. e4 {[%emt 1:15:40]} c5 {[%emt 1:15:40]} 2. Nf3 {[%emt 0:00:22]} d6 {[%emt 0:00:21]} 3. d4 {[%emt 0:00:20]} cxd4 {[%emt 0:00:21]} 4. Nxd4 {[%emt 0:00:21]} Nf6 {[%emt 0:00:20]} 5. Nc3 {[%emt 0:00:20]} a6 {[%emt 0:00:21]} 6. a4 {[%emt 0:00:21]} e5 {[%emt 0:00:21]} 7. Nf3 {[%emt 0:00:21]} Be7 {[%emt 0:00:21]} 8. Bg5 {[%emt 0:00:22]} Be6 {[%emt 0:00:20]} 9. Bxf6 {[%emt 0:00:21]} Bxf6 {[%emt 0:00:21]} 10. Nd5 {[%emt 0:00:21]} Nd7 {[%emt 0:00:21]} 11. Bc4 {[%emt 0:00:21]} Rc8 {[%emt 0:00:20]} 12. Qe2 {[%emt 0:00:21]} Nb6 {[%emt 0:00:26]} 13. Nxb6 {[%emt 0:00:22]} Qxb6 {[%emt 0:00:20]} 14. Bxe6 {[%emt 0:00:22]} Qxb2 {[%emt 0:00:24]} 15. Bxc8 {[%emt 0:08:10]} Qxa1+ {[%emt 0:00:25]} 16. Qd1 {[%emt 0:00:21]} Qc3+ {[%emt 0:00:21]} 17. Qd2 {[%emt 0:00:21]} Qxc8 {[%emt 0:00:34]} 18. Qxd6 {[%emt 0:00:21]} Qc3+ {[%emt 0:00:23]} 19. Kd1 {[%emt 0:00:22]} Qa1+ {[%emt 0:02:25]} 20. Ke2 {[%emt 0:00:23]} Qxh1 {[%emt 0:00:23]} 21. Qb8+ {[%emt 0:00:21]} Bd8 {[%emt 0:02:06]} 22. Qxe5+ {[%emt 0:00:23]} Kd7 {[%emt 0:00:23]} 23. Qxg7 {[%emt 0:10:13]} Re8 {[%emt 0:00:23]} 24. Qxf7+ {[%emt 0:00:21]} Re7 {[%emt 0:00:22]} 25. Ne5+ {[%emt 0:00:28]} Kc8 {[%emt 0:00:53]} 26. Qc4+ {[%emt 0:01:02]} Rc7 {[%emt 0:01:14]} 27. Qe6+ {[%emt 0:00:22]} Kb8 {[%emt 0:00:21]} 28. Qd6 {[%emt 0:00:20]} Ka7 {[%emt 0:01:32]} 29. Qd4+ {[%emt 0:00:34]} b6 {[%emt 0:00:21]} 30. Qxd8 {[%emt 0:00:21]} Rxc2+ {[%emt 0:00:25]} 31. Kf3 {[%emt 0:00:34]} Rc3+ {[%emt 0:00:23]} 32. Kf4 {[%emt 0:00:53]} Qxh2+ {[%emt 0:01:14]} 33. Kf5 {[%emt 0:00:23]} Qh5+ {[%emt 0:00:26]} 34. Ke6 {[%emt 0:00:21]} Qh6+ {[%emt 0:00:45]} 35. Kf5 {[%emt 0:00:22]} Qh5+ {[%emt 0:07:59]} 36. Ke6 {[%emt 0:00:21]} Qh6+ {[%emt 0:00:21]} 37. Kf5 {[%emt 0:00:21]} Qg7 {[%emt 0:00:39]} 38. Nd7 {[%emt 0:00:22]} Qf7+ {[%emt 0:01:16]} 39. Ke5 {[%emt 0:00:29]} Qg7+ {[%emt 0:00:25]} 40. Kf5 {[%emt 0:00:51]} Qf7+ {[%emt 0:00:39]} 41. Ke5 {[%emt 0:30:22]} Qg7+ {[%emt 0:30:26]} 42. Kf5 {[%emt 0:00:25]} 1/2-1/2

[Event "FTX Road to Miami Prelims 2022"]
[Site "Online"]
[Date "2022.07.04"]
[Round "10.7"]
[White "Duda, Jan-Krzysztof"]
[Black "Ju, Wenjun"]
[Result "1-0"]
[ECO "C67"]
[WhiteElo "2750"]
[BlackElo "2560"]
[Annotator "ChessBase"]
[PlyCount "75"]
[EventDate "2022.07.10"]
[EventType "tourn"]
[EventCountry "NET"]
[SourceTitle "playchess.com"]
[Source "ChessBase"]
[SourceQuality "1"]
[TimeControl "40/5400+30:1800+30"]

1. e4 {[%emt 1:15:40]} e5 {[%emt 1:15:40]} 2. Nf3 {[%emt 0:00:23]} Nc6 {[%emt 0:00:21]} 3. Bb5 {[%emt 0:00:21]} Nf6 {[%emt 0:00:21]} 4. O-O {[%emt 0:00:22]} Nxe4 {[%emt 0:00:22]} 5. d4 {[%emt 0:00:21]} Nd6 {[%emt 0:00:22]} 6. Bxc6 {[%emt 0:00:20]} dxc6 {[%emt 0:00:21]} 7. dxe5 {[%emt 0:00:21]} Nf5 {[%emt 0:00:21]} 8. Qxd8+ {[%emt 0:00:20]} Kxd8 {[%emt 0:00:20]} 9. h3 {[%emt 0:00:21]} h5 {[%emt 0:00:22]} 10. Nc3 {[%emt 0:00:23]} Ke8 {[%emt 0:00:25]} 11. Ne4 {[%emt 0:00:57]} Be6 {[%emt 0:00:40]} 12. Re1 {[%emt 0:00:27]} Be7 {[%emt 0:01:12]} 13. Neg5 {[%emt 0:01:00]} Bd5 {[%emt 0:02:30]} 14. Bf4 {[%emt 0:02:16]} Bxg5 {[%emt 0:04:28]} 15. Nxg5 {[%emt 0:00:20]} Nd4 {[%emt 0:01:31]} 16. Rad1 {[%emt 0:00:28]} Nxc2 {[%emt 0:00:24]} 17. Re2 {[%emt 0:00:23]} Nb4 {[%emt 0:00:22]} 18. e6 {[%emt 0:04:53]} Bxe6 {[%emt 0:01:02]} 19. Nxe6 {[%emt 0:02:16]} fxe6 {[%emt 0:00:22]} 20. Rxe6+ {[%emt 0:00:48]} Kf7 {[%emt 0:00:23]} 21. Re4 {[%emt 0:00:20]} Nd5 {[%emt 0:00:36]} 22. Bxc7 {[%emt 0:00:24]} Rhe8 {[%emt 0:00:37]} 23. Be5 {[%emt 0:00:44]} Rad8 {[%emt 0:00:47]} 24. Rde1 {[%emt 0:02:08]} g5 {[%emt 0:02:19]} 25. f3 {[%emt 0:01:29]} Nf6 {[%emt 0:02:16]} 26. R4e2 {[%emt 0:00:31]} Rd5 {[%emt 0:01:50]} 27. Kh2 {[%emt 0:01:25]} h4 {[%emt 0:03:30]} 28. f4 {[%emt 0:00:59]} g4 {[%emt 0:00:24]} 29. hxg4 {[%emt 0:00:43]} Nxg4+ {[%emt 0:00:20]} 30. Kh3 {[%emt 0:00:21]} Nxe5 {[%emt 0:00:31]} 31. fxe5 {[%emt 0:00:32]} Rh8 {[%emt 0:00:30]} 32. e6+ {[%emt 0:02:23]} Ke7 {[%emt 0:00:21]} 33. Rf1 {[%emt 0:00:37]} Rh7 {[%emt 0:00:34]} 34. Rf3 {[%emt 0:00:40]} Rd6 {[%emt 0:00:39]} 35. Rb3 {[%emt 0:00:56]} b6 {[%emt 0:00:24]} 36. Rc3 {[%emt 0:01:15]} Rh6 {[%emt 0:00:36]} 37. Ra3 {[%emt 0:00:32]} a5 {[%emt 0:00:57]} 38. b4 {[%emt 0:00:29]} 1-0

[Event "FTX Road to Miami Prelims 2022"]
[Site "Online"]
[Date "2022.07.04"]
[Round "10.8"]
[White "Mamedyarov, Shakhriyar"]
[Black "Erigaisi Arjun"]
[Result "0-1"]
[ECO "D38"]
[WhiteElo "2759"]
[BlackElo "2689"]
[Annotator "ChessBase"]
[PlyCount "72"]
[EventDate "2022.07.10"]
[EventType "tourn"]
[EventCountry "NET"]
[SourceTitle "playchess.com"]
[Source "ChessBase"]
[SourceQuality "1"]
[TimeControl "40/5400+30:1800+30"]

1. d4 {[%emt 1:15:40]} Nf6 {[%emt 1:15:40]} 2. c4 {[%emt 0:00:23]} e6 {[%emt 0:00:21]} 3. Nf3 {[%emt 0:00:20]} d5 {[%emt 0:00:21]} 4. Nc3 {[%emt 0:00:21]} Bb4 {[%emt 0:00:21]} 5. Bg5 {[%emt 0:00:33]} h6 {[%emt 0:00:22]} 6. Bxf6 {[%emt 0:00:21]} Qxf6 {[%emt 0:00:20]} 7. e3 {[%emt 0:00:22]} O-O {[%emt 0:00:21]} 8. Rc1 {[%emt 0:00:25]} dxc4 {[%emt 0:00:21]} 9. Bxc4 {[%emt 0:00:22]} c5 {[%emt 0:00:21]} 10. O-O {[%emt 0:00:33]} cxd4 {[%emt 0:00:22]} 11. Ne4 {[%emt 0:00:24]} Qe7 {[%emt 0:00:22]} 12. a3 {[%emt 0:00:26]} Ba5 {[%emt 0:00:22]} 13. exd4 {[%emt 0:00:21]} Rd8 {[%emt 0:00:37]} 14. Ba2 {[%emt 0:00:23]} Bd7 {[%emt 0:00:39]} 15. b4 {[%emt 0:01:34]} Bb6 {[%emt 0:00:23]} 16. Re1 {[%emt 0:00:26]} Bc6 {[%emt 0:03:50]} 17. Qc2 {[%emt 0:00:26]} Na6 {[%emt 0:01:37]} 18. h4 {[%emt 0:03:27]} Nc7 {[%emt 0:01:01]} 19. Bb1 {[%emt 0:02:16]} Nb5 {[%emt 0:03:56]} 20. Nc3 {[%emt 0:03:42]} g6 {[%emt 0:02:16]} 21. Nxb5 {[%emt 0:00:23]} Bxf3 {[%emt 0:00:21]} 22. gxf3 {[%emt 0:01:04]} Qxh4 {[%emt 0:00:22]} 23. Nc3 {[%emt 0:04:58]} Bxd4 {[%emt 0:01:10]} 24. Ne4 {[%emt 0:00:44]} Qh3 {[%emt 0:01:30]} 25. Rcd1 {[%emt 0:01:19]} Rd5 {[%emt 0:02:19]} 26. Rxd4 {[%emt 0:00:22]} Rxd4 {[%emt 0:00:20]} 27. Qc5 {[%emt 0:01:05]} Rad8 {[%emt 0:00:34]} 28. Nf6+ {[%emt 0:00:28]} Kg7 {[%emt 0:00:41]} 29. Ne8+ {[%emt 0:00:26]} Kg8 {[%emt 0:00:41]} 30. Nf6+ {[%emt 0:00:23]} Kg7 {[%emt 0:00:22]} 31. Qe5 {[%emt 0:01:38]} Qh4 {[%emt 0:00:32]} 32. Nh5+ {[%emt 0:00:42]} Kf8 {[%emt 0:00:21]} 33. Qg7+ {[%emt 0:00:23]} Ke7 {[%emt 0:00:31]} 34. Ng3 {[%emt 0:00:39]} Rd1 {[%emt 0:00:35]} 35. Qe5 {[%emt 0:00:21]} Qd4 {[%emt 0:00:39]} 36. Qxd4 {[%emt 0:00:44]} Rxe1+ {[%emt 0:00:23]} 0-1

[Event "FTX Road to Miami Prelims 2022"]
[Site "Online"]
[Date "2022.07.04"]
[Round "11.1"]
[White "Erigaisi Arjun"]
[Black "Niemann, Hans Moke"]
[Result "1-0"]
[ECO "C67"]
[WhiteElo "2689"]
[BlackElo "2688"]
[Annotator "ChessBase"]
[PlyCount "91"]
[EventDate "2022.07.10"]
[EventType "tourn"]
[EventCountry "NET"]
[SourceTitle "playchess.com"]
[Source "ChessBase"]
[SourceQuality "1"]
[TimeControl "40/5400+30:1800+30"]

1. e4 {[%emt 1:15:40]} e5 {[%emt 1:15:40]} 2. Nf3 {[%emt 0:00:22]} Nc6 {[%emt 0:00:21]} 3. Bb5 {[%emt 0:00:22]} Nf6 {[%emt 0:00:20]} 4. O-O {[%emt 0:00:24]} Nxe4 {[%emt 0:00:22]} 5. Re1 {[%emt 0:00:22]} Nd6 {[%emt 0:00:21]} 6. Nxe5 {[%emt 0:00:21]} Be7 {[%emt 0:00:21]} 7. Bf1 {[%emt 0:00:21]} Nxe5 {[%emt 0:00:21]} 8. Rxe5 {[%emt 0:00:20]} O-O {[%emt 0:00:21]} 9. d4 {[%emt 0:00:24]} Bf6 {[%emt 0:00:25]} 10. Re1 {[%emt 0:00:21]} Re8 {[%emt 0:00:21]} 11. c3 {[%emt 0:00:27]} Rxe1 {[%emt 0:00:22]} 12. Qxe1 {[%emt 0:00:20]} Ne8 {[%emt 0:00:20]} 13. Bf4 {[%emt 0:00:28]} d5 {[%emt 0:00:23]} 14. Bd3 {[%emt 0:00:21]} g6 {[%emt 0:00:21]} 15. Nd2 {[%emt 0:00:28]} Ng7 {[%emt 0:00:21]} 16. Nf3 {[%emt 0:00:35]} Bf5 {[%emt 0:00:22]} 17. Qd2 {[%emt 0:00:26]} Bxd3 {[%emt 0:00:39]} 18. Qxd3 {[%emt 0:00:20]} c6 {[%emt 0:00:28]} 19. Re1 {[%emt 0:00:38]} Qd7 {[%emt 0:00:23]} 20. Be5 {[%emt 0:00:45]} Bxe5 {[%emt 0:00:26]} 21. Rxe5 {[%emt 0:00:26]} Re8 {[%emt 0:00:27]} 22. Kf1 {[%emt 0:00:26]} f6 {[%emt 0:00:24]} 23. Rxe8+ {[%emt 0:00:30]} Nxe8 {[%emt 0:00:20]} 24. h3 {[%emt 0:00:30]} Nd6 {[%emt 0:00:22]} 25. Nd2 {[%emt 0:00:22]} Qe6 {[%emt 0:00:38]} 26. Qe2 {[%emt 0:00:37]} Kf7 {[%emt 0:00:39]} 27. Qxe6+ {[%emt 0:00:23]} Kxe6 {[%emt 0:00:20]} 28. Ke2 {[%emt 0:00:20]} h5 {[%emt 0:00:28]} 29. g4 {[%emt 0:00:31]} hxg4 {[%emt 0:00:32]} 30. hxg4 {[%emt 0:00:20]} f5 {[%emt 0:00:37]} 31. gxf5+ {[%emt 0:01:11]} Kxf5 {[%emt 0:00:22]} 32. Kf3 {[%emt 0:00:27]} g5 {[%emt 0:00:24]} 33. a4 {[%emt 0:01:51]} a5 {[%emt 0:00:36]} 34. Kg3 {[%emt 0:01:08]} b5 {[%emt 0:01:02]} 35. b3 {[%emt 0:03:45]} Nc8 {[%emt 0:05:41]} 36. Kf3 {[%emt 0:01:48]} Nb6 {[%emt 0:00:34]} 37. b4 {[%emt 0:00:22]} bxa4 {[%emt 0:02:32]} 38. bxa5 {[%emt 0:00:23]} Nc8 {[%emt 0:00:21]} 39. Nb1 {[%emt 0:01:26]} Na7 {[%emt 0:00:49]} 40. a6 {[%emt 0:00:44]} g4+ {[%emt 0:01:34]} 41. Kg3 {[%emt 0:30:22]} Ke4 {[%emt 0:30:48]} 42. Kxg4 {[%emt 0:00:26]} Kd3 {[%emt 0:00:21]} 43. f4 {[%emt 0:00:30]} Kc2 {[%emt 0:00:22]} 44. Na3+ {[%emt 0:00:59]} Kb3 {[%emt 0:01:25]} 45. f5 {[%emt 0:00:20]} Kxa3 {[%emt 0:00:30]} 46. f6 {[%emt 0:00:21]} 1-0

[Event "FTX Road to Miami Prelims 2022"]
[Site "Online"]
[Date "2022.07.04"]
[Round "11.2"]
[White "Ju, Wenjun"]
[Black "Mamedyarov, Shakhriyar"]
[Result "0-1"]
[ECO "D38"]
[WhiteElo "2560"]
[BlackElo "2759"]
[Annotator "ChessBase"]
[PlyCount "48"]
[EventDate "2022.07.10"]
[EventType "tourn"]
[EventCountry "NET"]
[SourceTitle "playchess.com"]
[Source "ChessBase"]
[SourceQuality "1"]
[TimeControl "40/5400+30:1800+30"]

1. d4 {[%emt 1:15:40]} Nf6 {[%emt 1:15:40]} 2. c4 {[%emt 0:00:22]} e6 {[%emt 0:00:21]} 3. Nf3 {[%emt 0:00:21]} d5 {[%emt 0:00:22]} 4. Nc3 {[%emt 0:00:22]} Bb4 {[%emt 0:00:28]} 5. Qa4+ {[%emt 0:00:23]} Nc6 {[%emt 0:00:22]} 6. e3 {[%emt 0:00:20]} O-O {[%emt 0:00:24]} 7. Bd2 {[%emt 0:00:22]} dxc4 {[%emt 0:00:36]} 8. Bxc4 {[%emt 0:00:23]} Bd6 {[%emt 0:00:22]} 9. Qc2 {[%emt 0:00:24]} e5 {[%emt 0:00:29]} 10. dxe5 {[%emt 0:00:21]} Nxe5 {[%emt 0:00:21]} 11. Nxe5 {[%emt 0:00:21]} Bxe5 {[%emt 0:00:20]} 12. f4 {[%emt 0:00:22]} Bd6 {[%emt 0:00:34]} 13. O-O {[%emt 0:01:57]} c6 {[%emt 0:00:22]} 14. Rae1 {[%emt 0:05:16]} Qe7 {[%emt 0:00:54]} 15. Kh1 {[%emt 0:01:47]} Bc5 {[%emt 0:00:53]} 16. Na4 {[%emt 0:01:23]} Ne4 {[%emt 0:02:30]} 17. Nxc5 {[%emt 0:01:35]} Nxd2 {[%emt 0:00:21]} 18. Qxd2 {[%emt 0:00:21]} Qxc5 {[%emt 0:00:21]} 19. Bb3 {[%emt 0:00:25]} Be6 {[%emt 0:01:06]} 20. Bxe6 {[%emt 0:01:06]} fxe6 {[%emt 0:00:20]} 21. Rd1 {[%emt 0:00:21]} e5 {[%emt 0:00:47]} 22. f5 {[%emt 0:00:50]} e4 {[%emt 0:01:28]} 23. Qd7 {[%emt 0:01:05]} Qxe3 {[%emt 0:03:48]} 24. Qxb7 {[%emt 0:06:43]} Qb6 {[%emt 0:00:25]} 0-1

[Event "FTX Road to Miami Prelims 2022"]
[Site "Online"]
[Date "2022.07.04"]
[Round "11.3"]
[White "Giri, Anish"]
[Black "Duda, Jan-Krzysztof"]
[Result "1/2-1/2"]
[ECO "C67"]
[WhiteElo "2760"]
[BlackElo "2750"]
[Annotator "ChessBase"]
[PlyCount "127"]
[EventDate "2022.07.10"]
[EventType "tourn"]
[EventCountry "NET"]
[SourceTitle "playchess.com"]
[Source "ChessBase"]
[SourceQuality "1"]
[TimeControl "40/5400+30:1800+30"]

1. e4 {[%emt 1:15:40]} e5 {[%emt 1:15:40]} 2. Nf3 {[%emt 0:00:21]} Nc6 {[%emt 0:00:21]} 3. Bb5 {[%emt 0:00:26]} Nf6 {[%emt 0:00:22]} 4. O-O {[%emt 0:01:00]} Nxe4 {[%emt 0:00:21]} 5. Re1 {[%emt 0:00:24]} Nd6 {[%emt 0:00:21]} 6. Nxe5 {[%emt 0:00:24]} Be7 {[%emt 0:00:22]} 7. Bf1 {[%emt 0:00:22]} Nxe5 {[%emt 0:00:21]} 8. Rxe5 {[%emt 0:00:21]} O-O {[%emt 0:00:22]} 9. Nc3 {[%emt 0:00:26]} Ne8 {[%emt 0:00:49]} 10. Nd5 {[%emt 0:00:24]} Bd6 {[%emt 0:00:22]} 11. Re1 {[%emt 0:00:23]} c6 {[%emt 0:00:45]} 12. Ne3 {[%emt 0:00:21]} Be7 {[%emt 0:00:39]} 13. c4 {[%emt 0:00:25]} Nc7 {[%emt 0:00:28]} 14. d4 {[%emt 0:00:21]} d5 {[%emt 0:00:22]} 15. cxd5 {[%emt 0:00:21]} Nxd5 {[%emt 0:00:27]} 16. Nxd5 {[%emt 0:00:21]} cxd5 {[%emt 0:00:20]} 17. Qb3 {[%emt 0:01:03]} Bf6 {[%emt 0:00:28]} 18. Be3 {[%emt 0:01:18]} Re8 {[%emt 0:04:10]} 19. Rac1 {[%emt 0:00:58]} Re6 {[%emt 0:03:24]} 20. Rc5 {[%emt 0:01:09]} Rb6 {[%emt 0:00:24]} 21. Rxd5 {[%emt 0:00:53]} Rxb3 {[%emt 0:00:23]} 22. Rxd8+ {[%emt 0:00:21]} Bxd8 {[%emt 0:00:20]} 23. axb3 {[%emt 0:00:22]} Bd7 {[%emt 0:00:21]} 24. g3 {[%emt 0:01:19]} Rc8 {[%emt 0:00:30]} 25. Bg2 {[%emt 0:01:49]} b6 {[%emt 0:00:22]} 26. Be4 {[%emt 0:01:13]} h6 {[%emt 0:00:38]} 27. f3 {[%emt 0:00:44]} Kf8 {[%emt 0:00:25]} 28. Kf2 {[%emt 0:00:55]} Be7 {[%emt 0:01:04]} 29. Rc1 {[%emt 0:01:30]} Rxc1 {[%emt 0:00:28]} 30. Bxc1 {[%emt 0:00:20]} Bf6 {[%emt 0:01:19]} 31. Ke3 {[%emt 0:00:43]} Be6 {[%emt 0:00:28]} 32. b4 {[%emt 0:00:30]} Bc4 {[%emt 0:03:15]} 33. Bc6 {[%emt 0:00:58]} Bg5+ {[%emt 0:00:39]} 34. f4 {[%emt 0:00:22]} Bf6 {[%emt 0:00:35]} 35. b5 {[%emt 0:01:29]} Be7 {[%emt 0:00:25]} 36. Ke4 {[%emt 0:01:32]} Bd6 {[%emt 0:00:33]} 37. Bd2 {[%emt 0:03:41]} Ke7 {[%emt 0:00:25]} 38. g4 {[%emt 0:01:09]} Be2 {[%emt 0:01:05]} 39. h3 {[%emt 0:00:22]} Ke6 {[%emt 0:01:41]} 40. Bc3 {[%emt 0:02:31]} f6 {[%emt 0:00:21]} 41. Ke3 {[%emt 0:30:30]} Bf1 {[%emt 0:30:57]} 42. h4 {[%emt 0:00:21]} Kf7 {[%emt 0:00:52]} 43. b3 {[%emt 0:00:58]} Ke7 {[%emt 0:00:36]} 44. Kf3 {[%emt 0:00:41]} Bd3 {[%emt 0:00:25]} 45. Bd2 {[%emt 0:00:26]} Ke6 {[%emt 0:00:33]} 46. d5+ {[%emt 0:00:54]} Ke7 {[%emt 0:00:25]} 47. g5 {[%emt 0:00:22]} h5 {[%emt 0:00:55]} 48. Bc3 {[%emt 0:00:28]} Bc2 {[%emt 0:00:22]} 49. b4 {[%emt 0:00:22]} Bd1+ {[%emt 0:00:29]} 50. Ke3 {[%emt 0:00:28]} Bc2 {[%emt 0:00:26]} 51. Kf3 {[%emt 0:00:25]} Bf5 {[%emt 0:00:28]} 52. Ke3 {[%emt 0:00:25]} Kf7 {[%emt 0:00:34]} 53. Kf3 {[%emt 0:00:53]} Bh3 {[%emt 0:00:39]} 54. gxf6 {[%emt 0:00:43]} gxf6 {[%emt 0:00:25]} 55. Ke3 {[%emt 0:00:21]} Bg4 {[%emt 0:00:44]} 56. Bd2 {[%emt 0:00:32]} Be7 {[%emt 0:01:18]} 57. Be1 {[%emt 0:00:30]} Bd6 {[%emt 0:00:34]} 58. Bc3 {[%emt 0:00:25]} Bf5 {[%emt 0:00:30]} 59. Be1 {[%emt 0:00:26]} Ke7 {[%emt 0:00:22]} 60. Bc3 {[%emt 0:00:22]} Bg6 {[%emt 0:00:22]} 61. Kf3 {[%emt 0:00:28]} Bf5 {[%emt 0:00:45]} 62. Ke3 {[%emt 0:00:21]} Bg6 {[%emt 0:00:20]} 63. Kf3 {[%emt 0:00:21]} Bf5 {[%emt 0:00:21]} 64. Ke3 {[%emt 0:00:21]} 1/2-1/2

[Event "FTX Road to Miami Prelims 2022"]
[Site "Online"]
[Date "2022.07.04"]
[Round "11.4"]
[White "Xiong, Jeffery"]
[Black "Dominguez Perez, Leinier"]
[Result "1/2-1/2"]
[ECO "D27"]
[WhiteElo "2691"]
[BlackElo "2754"]
[Annotator "ChessBase"]
[PlyCount "59"]
[EventDate "2022.07.10"]
[EventType "tourn"]
[EventCountry "NET"]
[SourceTitle "playchess.com"]
[Source "ChessBase"]
[SourceQuality "1"]
[TimeControl "40/5400+30:1800+30"]

1. d4 {[%emt 1:15:40]} d5 {[%emt 1:15:40]} 2. c4 {[%emt 0:00:24]} dxc4 {[%emt 0:00:22]} 3. Nf3 {[%emt 0:00:22]} Nf6 {[%emt 0:00:22]} 4. e3 {[%emt 0:00:21]} e6 {[%emt 0:00:22]} 5. Bxc4 {[%emt 0:00:21]} a6 {[%emt 0:00:20]} 6. O-O {[%emt 0:00:22]} c5 {[%emt 0:00:21]} 7. dxc5 {[%emt 0:00:27]} Bxc5 {[%emt 0:00:22]} 8. Qxd8+ {[%emt 0:00:21]} Kxd8 {[%emt 0:00:20]} 9. Be2 {[%emt 0:00:21]} Ke7 {[%emt 0:00:22]} 10. Nc3 {[%emt 0:00:22]} b5 {[%emt 0:00:26]} 11. Nd2 {[%emt 0:00:22]} Bb7 {[%emt 0:00:21]} 12. Nb3 {[%emt 0:00:23]} Nbd7 {[%emt 0:00:21]} 13. Nxc5 {[%emt 0:00:42]} Nxc5 {[%emt 0:00:21]} 14. b4 {[%emt 0:00:20]} Nce4 {[%emt 0:00:22]} 15. Nxe4 {[%emt 0:00:22]} Nxe4 {[%emt 0:00:21]} 16. Bb2 {[%emt 0:00:21]} Rac8 {[%emt 0:01:22]} 17. Rfc1 {[%emt 0:00:23]} Rhd8 {[%emt 0:02:36]} 18. Kf1 {[%emt 0:05:10]} Nd2+ {[%emt 0:07:36]} 19. Ke1 {[%emt 0:00:24]} Nc4 {[%emt 0:00:22]} 20. Bd4 {[%emt 0:01:42]} Bxg2 {[%emt 0:00:33]} 21. a4 {[%emt 0:00:22]} Bd5 {[%emt 0:01:27]} 22. axb5 {[%emt 0:00:32]} axb5 {[%emt 0:00:23]} 23. Ra7+ {[%emt 0:03:15]} Rd7 {[%emt 0:00:31]} 24. Rca1 {[%emt 0:01:18]} f6 {[%emt 0:01:42]} 25. Bh5 {[%emt 0:00:23]} Ne5 {[%emt 0:01:40]} 26. Bc5+ {[%emt 0:01:00]} Kd8 {[%emt 0:00:31]} 27. Bb6+ {[%emt 0:01:02]} Ke7 {[%emt 0:00:22]} 28. Bc5+ {[%emt 0:00:34]} Kd8 {[%emt 0:00:49]} 29. Bb6+ {[%emt 0:00:39]} Ke7 {[%emt 0:00:22]} 30. Bc5+ {[%emt 0:00:43]} 1/2-1/2